[Event "Chpt Reg Jeunes Occitanie 2026 - Espalion"]
[Site "Espalion, France"]
[Round "7.5"]
[ECO "?"]
[Annotator "?"]
[TimeControl "1h30 + 30sec/cp"]

1. e4 {[%clk 1:30:58][%emt 0:00:02]} 1... e5 {[%clk 1:30:56][%emt 0:00:05]} 2.
f4 {[%clk 1:31:23][%emt 0:00:03]} 2... exf4 {[%clk 1:30:35][%emt 0:00:52]} 3.
Nf3 {[%clk 1:31:48][%emt 0:00:06]} 3... Nc6 {[%clk 1:30:52][%emt 0:00:13]} 4.
d4 {[%clk 1:32:04][%emt 0:00:13]} 4... d5 {[%clk 1:31:00][%emt 0:00:22]} 5.
exd5 {[%clk 1:32:09][%emt 0:00:25]} 5... Qxd5 {[%clk 1:31:18][%emt 0:00:13]}
6. Bxf4 {[%clk 1:31:31][%emt 0:01:07]} 6... Bg4 {[%clk 1:26:55][%emt 0:04:53]}
7. Be2 {[%clk 1:31:31][%emt 0:00:30]} 7... O-O-O {[%clk 1:25:52][%emt 0:01:33]}
 8. c3 {[%clk 1:28:35][%emt 0:03:26]} 8... Re8 {[%clk 1:18:51][%emt 0:07:31]}
9. O-O {[%clk 1:22:57][%emt 0:06:08]} 9... Qe4 {[%clk 1:17:44][%emt 0:01:37]}
10. Ng5 {[%clk 1:18:37][%emt 0:04:50]} 10... Bxe2 {[%clk 1:13:58][%emt
0:04:16]} 11. Qe1 {[%clk 1:07:43][%emt 0:11:24]} 11... Qe7 {[%clk
1:11:26][%emt 0:03:02]} 12. Rf2 {[%clk 0:59:00][%emt 0:09:13]} 12... Bh5
{[%clk 1:11:07][%emt 0:00:48]} 13. Qxe7 {[%clk 0:56:34][%emt 0:02:57]} 13...
Bxe7 {[%clk 1:09:42][%emt 0:01:55]} 14. Nd2 {[%clk 0:53:56][%emt 0:03:07]}
14... Bxg5 {[%clk 1:08:07][%emt 0:02:05]} 15. Bxg5 {[%clk 0:54:17][%emt
0:00:09]} 15... f6 {[%clk 1:08:34][%emt 0:00:04]} 16. Bh4 {[%clk 0:53:20][%emt
0:01:25]} 16... Nge7 {[%clk 1:08:37][%emt 0:00:29]} 17. h3 {[%clk
0:50:47][%emt 0:03:03]} 17... Nd5 {[%clk 1:05:40][%emt 0:03:26]} 18. Rf5
{[%clk 0:51:02][%emt 0:00:15]} 18... Bf7 {[%clk 1:05:33][%emt 0:00:38]} 19. g4
{[%clk 0:51:13][%emt 0:00:18]} 19... Re2 {[%clk 1:04:07][%emt 0:01:57]} 20.
Nc4 {[%clk 0:50:14][%emt 0:01:29]} 20... Nde7 {[%clk 1:04:25][%emt 0:00:11]}
21. Rf3 {[%clk 0:50:07][%emt 0:00:37]} 0-1

[White "LADIER, Lucas"]
[Black "FOPPOLO, Marvin"]
[WhiteElo "1833"]
[BlackElo "1880"]
[Result "0-1"]
[Date "2026.03.07"]

[Event "Chpt Reg Jeunes Occitanie 2026 - Espalion"]
[Site "Espalion, France"]
[Round "8.2"]
[ECO "?"]
[Annotator "?"]
[TimeControl "1h30 + 30sec/cp"]

1. d4 {[%clk 1:30:57][%emt 0:00:03]} 1... d5 {[%clk 1:30:57][%emt 0:00:03]} 2.
Nc3 {[%clk 1:31:23][%emt 0:00:04]} 2... Nf6 {[%clk 1:31:23][%emt 0:00:04]} 3.
Bf4 {[%clk 1:31:45][%emt 0:00:08]} 3... e6 {[%clk 1:31:40][%emt 0:00:13]} 4.
e3 {[%clk 1:31:48][%emt 0:00:26]} 4... Bd6 {[%clk 1:32:05][%emt 0:00:05]} 5.
Bg3 {[%clk 1:30:59][%emt 0:01:19]} 5... O-O {[%clk 1:32:18][%emt 0:00:18]} 6.
Nf3 {[%clk 1:31:14][%emt 0:00:15]} 6... b6 {[%clk 1:32:29][%emt 0:00:20]} 7.
Bd3 {[%clk 1:31:04][%emt 0:00:39]} 7... Bb7 {[%clk 1:32:54][%emt 0:00:05]} 8.
Ne5 {[%clk 1:29:17][%emt 0:02:16]} 8... Nbd7 {[%clk 1:31:34][%emt 0:01:50]} 9.
f4 {[%clk 1:27:27][%emt 0:02:21]} 9... Ne4 {[%clk 1:31:26][%emt 0:00:38]} 10.
Qh5 {[%clk 1:24:50][%emt 0:03:06]} 10... Ndf6 {[%clk 1:25:11][%emt 0:06:45]}
11. Qh3 {[%clk 1:23:11][%emt 0:02:06]} 11... Bb4 {[%clk 1:23:51][%emt 0:01:53]}
 12. O-O {[%clk 1:20:19][%emt 0:03:22]} 12... Nxc3 {[%clk 1:21:42][%emt
0:02:40]} 13. bxc3 {[%clk 1:20:24][%emt 0:00:25]} 13... Bxc3 {[%clk
1:22:06][%emt 0:00:05]} 14. Bh4 {[%clk 1:17:32][%emt 0:03:23]} 14... g6 {[%clk
1:18:45][%emt 0:03:52]} 15. Ng4 {[%clk 1:16:50][%emt 0:01:11]} 15... Bb4
{[%clk 1:06:02][%emt 0:13:14]} 16. Bxf6 {[%clk 1:16:59][%emt 0:00:20]} 16...
Be7 {[%clk 1:06:28][%emt 0:00:05]} 17. Nh6# {[%emt 0:00:56]} 1-0

[White "GOURION, Sacha"]
[Black "POSOCCO DE GRANDI, Marc"]
[WhiteElo "1715"]
[BlackElo "1871"]
[Result "1/2-1/2"]
[Date "2026.03.07"]

[Event "Chpt Reg Jeunes Occitanie 2026 - Espalion"]
[Site "Espalion, France"]
[Round "8.3"]
[ECO "?"]
[Annotator "?"]
[TimeControl "1h30 + 30sec/cp"]

1. d4 {[%clk 1:30:59][%emt 0:00:01]} 1... Nf6 {[%clk 1:30:52][%emt 0:00:09]}
2. Bg5 {[%clk 1:31:24][%emt 0:00:04]} 2... d5 {[%clk 1:30:56][%emt 0:00:26]}
3. Bxf6 {[%clk 1:31:38][%emt 0:00:16]} 3... exf6 {[%clk 1:30:36][%emt 0:00:50]}
 4. e3 {[%clk 1:32:01][%emt 0:00:07]} 4... Be6 {[%clk 1:30:30][%emt 0:00:36]}
5. Nd2 {[%clk 1:31:43][%emt 0:00:48]} 5... c6 {[%clk 1:29:11][%emt 0:01:49]}
6. c4 {[%clk 1:30:30][%emt 0:01:42]} 6... dxc4 {[%clk 1:28:36][%emt 0:01:05]}
7. Bxc4 {[%clk 1:30:31][%emt 0:00:29]} 7... Bxc4 {[%clk 1:27:52][%emt 0:01:15]}
 8. Nxc4 {[%clk 1:30:51][%emt 0:00:10]} 8... Bb4+ {[%clk 1:28:04][%emt
0:00:18]} 9. Nd2 {[%emt 0:01:02]} 9... O-O {[%clk 1:28:04]} 10. Ngf3 {[%clk
1:29:12][%emt 0:02:05]} 10... c5 {[%clk 1:26:56][%emt 0:01:39]} 11. a3 {[%clk
1:27:28][%emt 0:02:15]} 11... Ba5 {[%clk 1:25:34][%emt 0:01:51]} 12. dxc5
{[%clk 1:23:14][%emt 0:04:44]} 12... Qd3 {[%emt 0:13:01]} 13. b4 {[%clk
1:11:59][%emt 0:11:43]} 13... Bc7 {[%clk 1:12:30][%emt 0:01:04]} 14. Qe2
{[%clk 1:11:07][%emt 0:01:23]} 14... Qxe2+ {[%clk 1:08:46][%emt 0:04:15]} 15.
Kxe2 {[%clk 1:11:20][%emt 0:00:17]} 15... a5 {[%clk 1:08:29][%emt 0:00:46]}
16. Nc4 {[%clk 1:03:14][%emt 0:08:36]} 16... axb4 {[%clk 1:03:49][%emt
0:05:10]} 17. axb4 {[%clk 1:02:46][%emt 0:00:58]} 17... Rxa1 {[%clk
0:58:10][%emt 0:06:09]} 18. Rxa1 {[%clk 1:02:55][%emt 0:00:21]} 18... Na6
{[%clk 0:58:01][%emt 0:00:39]} 19. Rb1 {[%clk 0:54:26][%emt 0:08:59]} 19...
Rd8 {[%clk 0:54:58][%emt 0:03:33]} 20. Nd4 {[%clk 0:48:53][%emt 0:06:03]}
20... Be5 {[%clk 0:41:05][%emt 0:14:23]} 21. Kd3 {[%clk 0:35:19][%emt 0:14:04]}
 21... Nc7 {[%clk 0:36:57][%emt 0:04:39]} 22. Nd2 {[%clk 0:30:03][%emt
0:05:45]} 22... Bxd4 {[%clk 0:21:02][%emt 0:16:25]} 23. exd4 {[%clk
0:30:25][%emt 0:00:08]} 23... Ne6 {[%clk 0:21:16][%emt 0:00:17]} 24. Nf3
{[%clk 0:28:23][%emt 0:02:32]} 24... g5 {[%clk 0:20:41][%emt 0:01:04]} 25. Kc4
{[%clk 0:20:01][%emt 0:08:52]} 25... g4 {[%clk 0:19:56][%emt 0:01:15]} 26. d5
{[%clk 0:20:25][%emt 0:00:06]} 26... Nf4 {[%clk 0:18:59][%emt 0:01:28]} 27.
Nd4 {[%clk 0:19:33][%emt 0:01:22]} 27... Nxd5 {[%clk 0:17:31][%emt 0:01:57]}
28. Nf5 {[%clk 0:19:57][%emt 0:00:06]} 28... h5 {[%clk 0:16:14][%emt 0:01:46]}
29. Nd6 {[%clk 0:19:56][%emt 0:00:32]} 29... Nf4 {[%clk 0:15:02][%emt 0:01:43]}
 30. Nxb7 {[%clk 0:18:58][%emt 0:01:27]} 30... Rd2 {[%clk 0:15:11][%emt
0:00:21]} 31. c6 {[%clk 0:15:01][%emt 0:04:28]} 31... Rc2+ {[%clk
0:12:12][%emt 0:03:29]} 32. Kb5 {[%clk 0:15:26][%emt 0:00:05]} 32... Nd5
{[%clk 0:11:59][%emt 0:00:43]} 33. Ra1 {[%clk 0:07:40][%emt 0:08:15]} 33...
Nc7+ {[%clk 0:11:35][%emt 0:00:53]} 34. Kb6 {[%emt 0:00:33]} 34... Nd5+ {[%clk
0:11:53]} 35. Kb5 {[%clk 0:07:42][%emt 0:00:38]} 35... Nc7+ {[%clk
0:12:04][%emt 0:00:20]} 36. Kb6 {[%clk 0:08:06][%emt 0:00:06]} 36... Nd5+
{[%clk 0:12:26][%emt 0:00:07]} 37. Kb5 {[%clk 0:08:31][%emt 0:00:06]} 1/2-1/2

[White "DECLERCK, Timothee"]
[Black "PICQ, Simon"]
[WhiteElo "1854"]
[BlackElo "1592"]
[Result "1-0"]
[Date "2026.03.07"]

[Event "Chpt Reg Jeunes Occitanie 2026 - Espalion"]
[Site "Espalion, France"]
[Round "8.4"]
[ECO "?"]
[Annotator "?"]
[TimeControl "1h30 + 30sec/cp"]

1. d4 {[%clk 1:30:55][%emt 0:00:04]} 1... Nf6 {[%clk 1:30:52][%emt 0:00:09]}
2. c4 {[%clk 1:31:20][%emt 0:00:04]} 2... e6 {[%clk 1:31:09][%emt 0:00:13]} 3.
Nc3 {[%clk 1:31:38][%emt 0:00:11]} 3... Bb4 {[%clk 1:31:15][%emt 0:00:25]} 4.
e3 {[%clk 1:31:02][%emt 0:01:06]} 4... b6 {[%clk 1:30:12][%emt 0:01:33]} 5.
Nf3 {[%clk 1:27:39][%emt 0:03:53]} 5... Bb7 {[%clk 1:28:47][%emt 0:01:55]} 6.
Be2 {[%clk 1:25:45][%emt 0:02:24]} 6... d6 {[%clk 1:27:42][%emt 0:01:35]} 7.
Qc2 {[%clk 1:20:12][%emt 0:06:03]} 7... Nbd7 {[%clk 1:26:13][%emt 0:01:59]} 8.
O-O {[%clk 1:19:02][%emt 0:01:41]} 8... Bxc3 {[%clk 1:25:37][%emt 0:01:06]} 9.
Qxc3 {[%clk 1:17:47][%emt 0:01:45]} 9... O-O {[%clk 1:24:43][%emt 0:01:23]}
10. b3 {[%clk 1:16:05][%emt 0:02:12]} 10... Qe7 {[%clk 1:22:26][%emt 0:02:47]}
11. Bb2 {[%clk 1:13:21][%emt 0:03:14]} 11... Ne4 {[%clk 1:20:53][%emt 0:02:03]}
 12. Qc2 {[%clk 1:12:45][%emt 0:01:06]} 12... c5 {[%clk 1:17:33][%emt 0:03:50]}
 13. Rfd1 {[%clk 1:07:34][%emt 0:05:41]} 13... Rfd8 {[%clk 1:15:23][%emt
0:02:41]} 14. Nd2 {[%clk 0:59:19][%emt 0:08:44]} 14... Qh4 {[%clk
1:12:48][%emt 0:03:05]} 15. g3 {[%clk 0:50:59][%emt 0:08:50]} 15... Qh3 {[%clk
1:07:59][%emt 0:05:20]} 16. Nxe4 {[%clk 0:50:24][%emt 0:01:05]} 16... f5
{[%clk 1:08:09][%emt 0:00:19]} 17. d5 {[%clk 0:49:00][%emt 0:01:54]} 17...
fxe4 {[%clk 1:06:18][%emt 0:02:22]} 18. Qxe4 {[%clk 0:47:58][%emt 0:01:31]}
18... e5 {[%clk 1:05:00][%emt 0:01:49]} 19. Bg4 {[%clk 0:45:43][%emt 0:02:44]}
19... Nf6 {[%clk 1:01:22][%emt 0:04:08]} 20. Bxh3 {[%clk 0:45:38][%emt
0:00:35]} 20... Nxe4 {[%clk 1:01:47][%emt 0:00:05]} 21. f4 {[%clk
0:43:40][%emt 0:02:28]} 21... exf4 {[%clk 1:01:10][%emt 0:01:07]} 22. exf4
{[%clk 0:43:43][%emt 0:00:27]} 22... Bc8 {[%clk 1:00:33][%emt 0:01:07]} 23.
Bg2 {[%clk 0:28:50][%emt 0:15:23]} 23... Bf5 {[%clk 0:59:41][%emt 0:01:23]}
24. Re1 {[%clk 0:28:48][%emt 0:00:32]} 24... Re8 {[%clk 0:59:15][%emt 0:00:56]}
 25. g4 {[%clk 0:27:31][%emt 0:01:47]} 25... Bxg4 {[%clk 0:59:24][%emt
0:00:21]} 26. Bxe4 {[%clk 0:26:45][%emt 0:01:16]} 26... Rf8 {[%clk
0:59:44][%emt 0:00:10]} 27. Rf1 {[%clk 0:26:48][%emt 0:00:26]} 27... Rae8
{[%clk 0:59:52][%emt 0:00:23]} 28. Rae1 {[%clk 0:26:33][%emt 0:00:44]} 28...
g6 {[%clk 0:59:38][%emt 0:00:45]} 29. Kg2 {[%clk 0:25:33][%emt 0:01:29]} 29...
Bd1 {[%clk 0:59:02][%emt 0:01:06]} 30. Bc1 {[%clk 0:23:19][%emt 0:02:44]}
30... Bg4 {[%clk 0:59:12][%emt 0:00:21]} 31. Kg3 {[%clk 0:23:06][%emt 0:00:43]}
 31... Bd7 {[%clk 0:59:07][%emt 0:00:35]} 32. Bd3 {[%clk 0:23:01][%emt
0:00:34]} 32... Kf7 {[%clk 0:59:15][%emt 0:00:22]} 33. Bd2 {[%clk
0:23:10][%emt 0:00:22]} 33... Ra8 {[%clk 0:58:58][%emt 0:00:47]} 34. f5 {[%clk
0:22:42][%emt 0:00:58]} 1-0

[White "DARTHENAY, Antoine"]
[Black "CAMPAGNOL, Leonard"]
[WhiteElo "1823"]
[BlackElo "1299"]
[Result "1-0"]
[Date "2026.03.07"]

[Event "Chpt Reg Jeunes Occitanie 2026 - Espalion"]
[Site "Espalion, France"]
[Round "8.5"]
[ECO "?"]
[Annotator "?"]
[TimeControl "1h30 + 30sec/cp"]

1. e4 {[%clk 1:30:53][%emt 0:00:06]} 1... c5 {[%clk 1:30:00][%emt 0:01:01]} 2.
Nc3 {[%clk 1:31:15][%emt 0:00:09]} 2... g6 {[%clk 1:29:51][%emt 0:00:38]} 3.
f4 {[%clk 1:31:38][%emt 0:00:07]} 3... Bg7 {[%clk 1:29:13][%emt 0:01:08]} 4.
Nf3 {[%clk 1:32:00][%emt 0:00:09]} 4... Nc6 {[%clk 1:25:47][%emt 0:03:56]} 5.
Bc4 {[%clk 1:32:21][%emt 0:00:09]} 5... e6 {[%clk 1:25:48][%emt 0:00:29]} 6.
O-O {[%clk 1:32:37][%emt 0:00:14]} 6... Nge7 {[%clk 1:25:37][%emt 0:00:41]} 7.
d3 {[%clk 1:32:58][%emt 0:00:09]} 7... d5 {[%clk 1:20:13][%emt 0:05:54]} 8.
Bb3 {[%clk 1:33:21][%emt 0:00:08]} 8... O-O {[%clk 1:18:56][%emt 0:01:46]} 9.
e5 {[%clk 1:33:20][%emt 0:00:32]} 9... Nf5 {[%clk 1:13:18][%emt 0:06:08]} 10.
Ne2 {[%clk 1:33:03][%emt 0:00:46]} 10... b5 {[%clk 1:11:39][%emt 0:02:09]} 11.
c3 {[%clk 1:28:40][%emt 0:04:54]} 11... d4 {[%clk 1:05:21][%emt 0:06:47]} 12.
cxd4 {[%clk 1:24:37][%emt 0:04:34]} 12... Ncxd4 {[%clk 0:58:45][%emt 0:07:06]}
13. Nexd4 {[%clk 1:24:22][%emt 0:00:45]} 13... Nxd4 {[%clk 0:57:17][%emt
0:01:58]} 14. Be3 {[%clk 1:22:47][%emt 0:02:04]} 14... Bb7 {[%clk
0:49:30][%emt 0:08:17]} 15. Ng5 {[%clk 1:19:49][%emt 0:03:29]} 15... Rc8
{[%clk 0:39:50][%emt 0:10:10]} 16. Rc1 {[%clk 1:13:17][%emt 0:07:02]} 16...
Qd7 {[%clk 0:34:48][%emt 0:05:32]} 17. Ne4 {[%clk 1:04:39][%emt 0:09:08]}
17... Bxe4 {[%clk 0:34:51][%emt 0:00:27]} 18. dxe4 {[%clk 1:04:58][%emt
0:00:11]} 18... Rfd8 {[%clk 0:34:40][%emt 0:00:40]} 19. Kh1 {[%clk
0:46:06][%emt 0:19:21]} 19... c4 {[%clk 0:30:47][%emt 0:04:24]} 20. Bc2 {[%clk
0:45:45][%emt 0:00:52]} 20... a5 {[%clk 0:29:05][%emt 0:02:12]} 21. Qd2 {[%clk
0:44:13][%emt 0:02:01]} 21... Nxc2 {[%clk 0:26:58][%emt 0:02:37]} 22. Qxc2
{[%clk 0:38:49][%emt 0:05:54]} 22... Qc7 {[%clk 0:23:11][%emt 0:04:17]} 23.
Qf2 {[%clk 0:37:38][%emt 0:01:40]} 23... Rd3 {[%clk 0:20:10][%emt 0:03:32]}
24. Bb6 {[%clk 0:30:46][%emt 0:07:23]} 24... Qb7 {[%clk 0:20:02][%emt 0:00:36]}
 25. Rfe1 {[%clk 0:29:48][%emt 0:01:29]} 25... a4 {[%clk 0:19:42][%emt
0:00:50]} 26. Ba5 {[%clk 0:29:12][%emt 0:01:06]} 26... Ra8 {[%clk
0:16:41][%emt 0:03:31]} 27. Bc3 {[%clk 0:23:01][%emt 0:06:42]} 27... Rad8
{[%clk 0:16:33][%emt 0:00:38]} 28. a3 {[%clk 0:20:48][%emt 0:02:43]} 28... Bf8
{[%clk 0:15:09][%emt 0:01:51]} 29. f5 {[%clk 0:19:09][%emt 0:02:10]} 29... Bh6
{[%clk 0:14:52][%emt 0:00:48]} 30. Rc2 {[%clk 0:18:01][%emt 0:01:39]} 30...
Rd1 {[%clk 0:13:18][%emt 0:02:03]} 31. Rce2 {[%clk 0:17:09][%emt 0:01:22]}
31... exf5 {[%clk 0:12:09][%emt 0:01:39]} 32. exf5 {[%clk 0:17:10][%emt
0:00:29]} 32... R8d3 {[%clk 0:12:02][%emt 0:00:37]} 33. fxg6 {[%clk
0:16:07][%emt 0:01:33]} 33... hxg6 {[%clk 0:11:24][%emt 0:01:08]} 34. e6
{[%clk 0:15:30][%emt 0:01:08]} 34... fxe6 {[%clk 0:10:19][%emt 0:01:35]} 35.
Rxe6 {[%clk 0:14:31][%emt 0:01:28]} 35... Qf7 {[%clk 0:09:36][%emt 0:01:10]}
36. Qe2 {[%clk 0:13:44][%emt 0:01:19]} 36... Bf8 {[%clk 0:05:55][%emt 0:03:31]}
 37. Rf6 {[%clk 0:10:47][%emt 0:04:09]} 37... Rxe1+ {[%clk 0:04:50][%emt
0:01:35]} 38. Qxe1 {[%clk 0:10:59][%emt 0:00:18]} 38... Qg7 {[%clk
0:04:13][%emt 0:01:06]} 39. Qe6+ {[%clk 0:10:03][%emt 0:01:26]} 39... Kh7
{[%clk 0:04:26][%emt 0:00:16]} 40. h3 {[%clk 0:09:33][%emt 0:01:00]} 40... Bd6
{[%clk 0:03:54][%emt 0:01:02]} 41. Rf1 {[%clk 0:08:11][%emt 0:01:52]} 1-0

[White "FOPPOLO, Marvin"]
[Black "GOURION, Sacha"]
[WhiteElo "1880"]
[BlackElo "1715"]
[Result "1-0"]
[Date "2026.03.08"]

[Event "Chpt Reg Jeunes Occitanie 2026 - Espalion"]
[Site "Espalion, France"]
[Round "9.1"]
[ECO "?"]
[Annotator "?"]
[TimeControl "1h30 + 30sec/cp"]

1. e4 {[%clk 1:30:59][%emt 0:00:01]} 1... c5 {[%clk 1:30:57][%emt 0:00:04]} 2.
Nf3 {[%clk 1:31:24][%emt 0:00:05]} 2... d6 {[%clk 1:31:23][%emt 0:00:03]} 3.
d4 {[%clk 1:31:47][%emt 0:00:06]} 3... cxd4 {[%clk 1:31:49][%emt 0:00:04]} 4.
Nxd4 {[%clk 1:32:13][%emt 0:00:03]} 4... Nf6 {[%clk 1:32:10][%emt 0:00:10]} 5.
Nc3 {[%clk 1:32:42][%emt 0:00:02]} 5... g6 {[%clk 1:32:30][%emt 0:00:09]} 6.
Be3 {[%clk 1:33:02][%emt 0:00:09]} 6... Bg7 {[%clk 1:32:59][%emt 0:00:03]} 7.
f3 {[%clk 1:33:25][%emt 0:00:06]} 7... O-O {[%clk 1:33:22][%emt 0:00:07]} 8.
Qd2 {[%clk 1:33:51][%emt 0:00:04]} 8... Nc6 {[%clk 1:33:32][%emt 0:00:20]} 9.
O-O-O {[%clk 1:34:14][%emt 0:00:07]} 9... d5 {[%clk 1:33:35][%emt 0:00:28]}
10. exd5 {[%clk 1:34:37][%emt 0:00:06]} 10... Nxd5 {[%clk 1:34:00][%emt
0:00:06]} 11. Nxc6 {[%clk 1:34:58][%emt 0:00:09]} 11... bxc6 {[%clk
1:34:25][%emt 0:00:05]} 12. Bd4 {[%clk 1:35:23][%emt 0:00:05]} 12... Bxd4
{[%clk 1:15:47][%emt 0:19:07]} 13. Qxd4 {[%clk 1:34:43][%emt 0:01:10]} 13...
e5 {[%clk 1:15:40][%emt 0:00:38]} 14. Qxe5 {[%clk 1:28:36][%emt 0:06:36]}
14... Re8 {[%clk 1:15:56][%emt 0:00:14]} 15. Qd4 {[%clk 1:29:00][%emt 0:00:06]}
 15... Qg5+ {[%clk 1:16:13][%emt 0:00:14]} 16. Qd2 {[%clk 1:29:03][%emt
0:00:26]} 16... Ne3 {[%clk 1:16:00][%emt 0:00:43]} 17. Re1 {[%clk
1:27:43][%emt 0:01:50]} 17... f5 {[%clk 1:04:34][%emt 0:11:57]} 18. Ne4 {[%clk
1:18:35][%emt 0:09:37]} 18... fxe4 {[%clk 1:02:15][%emt 0:02:50]} 19. Qxe3
{[%clk 1:18:43][%emt 0:00:21]} 19... Qa5 {[%clk 1:02:24][%emt 0:00:21]} 20.
Bc4+ {[%clk 1:18:38][%emt 0:00:35]} 20... Be6 {[%clk 1:02:32][%emt 0:00:22]}
21. Qxe4 {[%clk 1:16:54][%emt 0:02:14]} 21... Bd5 {[%clk 1:00:51][%emt
0:02:12]} 22. Qh4 {[%clk 1:13:36][%emt 0:03:46]} 22... h6 {[%clk 0:52:58][%emt
0:08:24]} 23. a3 {[%clk 1:08:24][%emt 0:05:42]} 23... g5 {[%clk 0:51:03][%emt
0:02:25]} 24. Bxd5+ {[%clk 1:08:33][%emt 0:00:21]} 24... cxd5 {[%clk
0:51:31][%emt 0:00:02]} 25. Qb4 {[%clk 1:08:35][%emt 0:00:28]} 1-0

[White "DARTHENAY, Antoine"]
[Black "BORCEUX, Theophile"]
[WhiteElo "1823"]
[BlackElo "1888"]
[Result "0-1"]
[Date "2026.03.08"]